[Event "Titled Tuesday Blitz November 01 Early 2022"]
[White "Caruana, Fabiano"]
[Black "Sarana, Alexey"]
[WhiteFideId "2020009"]
[BlackFideId "24133795"]
[WhiteElo "2847"]
[BlackElo "2689"]
[Result "1/2-1/2"]
[Round "09"]
[TimeControl "180+1"]
[Date "2022.11.01"]
[WhiteClock "0:00:12"]
[BlackClock "0:00:15"]

1. d4 {[%clk 0:03:00]}  d5 {[%clk 0:03:00]} 2. Bf4 {[%clk 0:03:00]}  Nf6 {[%clk 0:03:00]} 3. e3 {[%clk 0:02:59]}  c5 {[%clk 0:03:00]} 4. c3 {[%clk 0:02:59]}  Nc6 {[%clk 0:03:01]} 5. Nd2 {[%clk 0:02:59]}  e6 {[%clk 0:03:00]} 6. Ngf3 {[%clk 0:02:59]}  Nh5 {[%clk 0:03:00]} 7. Bg5 {[%clk 0:02:58]}  f6 {[%clk 0:03:01]} 8. Bh4 {[%clk 0:02:58]}  g6 {[%clk 0:03:01]} 9. Bb5 {[%clk 0:02:57]}  Be7 {[%clk 0:03:00]} 10. O-O {[%clk 0:02:57]}  O-O {[%clk 0:03:00]} 11. Re1 {[%clk 0:02:56]}  Qb6 {[%clk 0:02:59]} 12. a4 {[%clk 0:02:55]}  a6 {[%clk 0:02:57]} 13. Bxc6 {[%clk 0:02:54]}  bxc6 {[%clk 0:02:58]} 14. Rb1 {[%clk 0:02:49]}  cxd4 {[%clk 0:02:54]} 15. exd4 {[%clk 0:02:47]}  c5 {[%clk 0:02:54]} 16. dxc5 {[%clk 0:02:44]}  Qxc5 {[%clk 0:02:54]} 17. Qc2 {[%clk 0:02:34]}  e5 {[%clk 0:02:50]} 18. b4 {[%clk 0:02:34]}  Qc7 {[%clk 0:02:50]} 19. Rbc1 {[%clk 0:02:25]}  Be6 {[%clk 0:02:44]} 20. Nb3 {[%clk 0:02:18]}  Rac8 {[%clk 0:02:38]} 21. Qd2 {[%clk 0:02:07]}  Rcd8 {[%clk 0:02:20]} 22. Qe2 {[%clk 0:02:03]}  Bg4 {[%clk 0:02:04]} 23. Qxa6 {[%clk 0:01:55]}  Ra8 {[%clk 0:01:51]} 24. Qb5 {[%clk 0:01:50]}  Nf4 {[%clk 0:01:43]} 25. Bg3 {[%clk 0:01:42]}  Bd7 {[%clk 0:01:39]} 26. Qf1 {[%clk 0:01:40]}  Bxa4 {[%clk 0:01:38]} 27. Na5 {[%clk 0:01:05]}  Nh5 {[%clk 0:01:20]} 28. Qd3 {[%clk 0:00:59]}  Qd7 {[%clk 0:01:18]} 29. Qd2 {[%clk 0:00:57]}  Rfd8 {[%clk 0:01:12]} 30. Ra1 {[%clk 0:00:50]}  Bf8 {[%clk 0:01:09]} 31. Bxe5 {[%clk 0:00:41]}  fxe5 {[%clk 0:00:47]} 32. Nxe5 {[%clk 0:00:41]}  Qe8 {[%clk 0:00:34]} 33. h3 {[%clk 0:00:18]}  Bb5 {[%clk 0:00:33]} 34. Rad1 {[%clk 0:00:17]}  Rd6 {[%clk 0:00:19]} 35. Qd4 {[%clk 0:00:15]}  Bg7 {[%clk 0:00:10]} 36. c4 {[%clk 0:00:14]}  Ba4 {[%clk 0:00:08]} 37. Ra1 {[%clk 0:00:13]}  Re6 {[%clk 0:00:08]} 38. f4 {[%clk 0:00:08]}  Nxf4 {[%clk 0:00:08]} 39. Qxf4 {[%clk 0:00:08]}  Rxe5 {[%clk 0:00:08]} 40. Rf1 {[%clk 0:00:06]}  Re4 {[%clk 0:00:08]} 41. Qd2 {[%clk 0:00:06]}  Bxa1 {[%clk 0:00:04]} 42. Qxd5+ {[%clk 0:00:06]}  Kh8 {[%clk 0:00:04]} 43. Rxa1 {[%clk 0:00:06]}  Rd8 {[%clk 0:00:05]} 44. Qg5 {[%clk 0:00:05]}  Bc2 {[%clk 0:00:04]} 45. Nb7 {[%clk 0:00:04]}  Rd7 {[%clk 0:00:03]} 46. Nc5 {[%clk 0:00:04]}  Rf7 {[%clk 0:00:02]} 47. Nxe4 {[%clk 0:00:03]}  Bxe4 {[%clk 0:00:03]} 48. Qe3 {[%clk 0:00:03]}  Qe5 {[%clk 0:00:03]} 49. Re1 {[%clk 0:00:03]}  Re7 {[%clk 0:00:04]} 50. b5 {[%clk 0:00:04]}  Qb2 {[%clk 0:00:03]} 51. Qf2 {[%clk 0:00:04]}  Qg7 {[%clk 0:00:02]} 52. b6 {[%clk 0:00:04]}  Kg8 {[%clk 0:00:02]} 53. Qe3 {[%clk 0:00:03]}  Kf8 {[%clk 0:00:02]} 54. Qc5 {[%clk 0:00:02]}  Kg8 {[%clk 0:00:02]} 55. b7 {[%clk 0:00:02]}  Rxb7 {[%clk 0:00:02]} 56. Rxe4 {[%clk 0:00:01]}  Qf7 {[%clk 0:00:02]} 57. Qd5 {[%clk 0:00:01]}  Qxd5 {[%clk 0:00:02]} 58. cxd5 {[%clk 0:00:02]}  Rd7 {[%clk 0:00:03]} 59. Rd4 {[%clk 0:00:03]}  Kf7 {[%clk 0:00:04]} 60. Kf2 {[%clk 0:00:04]}  Kf6 {[%clk 0:00:04]} 61. Ke3 {[%clk 0:00:04]}  Ke5 {[%clk 0:00:05]} 62. Re4+ {[%clk 0:00:03]}  Kxd5 {[%clk 0:00:05]} 63. Rd4+ {[%clk 0:00:04]}  Ke6 {[%clk 0:00:06]} 64. Rxd7 {[%clk 0:00:05]}  Kxd7 {[%clk 0:00:07]} 65. Kf4 {[%clk 0:00:06]}  Ke6 {[%clk 0:00:08]} 66. Kg5 {[%clk 0:00:06]}  Kf7 {[%clk 0:00:08]} 67. Kh6 {[%clk 0:00:07]}  Kg8 {[%clk 0:00:09]} 68. h4 {[%clk 0:00:08]}  Kh8 {[%clk 0:00:10]} 69. g4 {[%clk 0:00:08]}  Kg8 {[%clk 0:00:10]} 70. Kg5 {[%clk 0:00:09]}  Kg7 {[%clk 0:00:11]} 71. h5 {[%clk 0:00:09]}  h6+ {[%clk 0:00:11]} 72. Kf4 {[%clk 0:00:10]}  Kf6 {[%clk 0:00:12]} 73. hxg6 {[%clk 0:00:10]}  Kxg6 {[%clk 0:00:12]} 74. Kg3 {[%clk 0:00:10]}  Kg5 {[%clk 0:00:13]} 75. Kh3 {[%clk 0:00:11]}  h5 {[%clk 0:00:14]} 76. gxh5 {[%clk 0:00:12]}  Kxh5 {[%clk 0:00:15]} 1/2-1/2


[Site "https://www.chess.com"]

[Event "Titled Tuesday Blitz November 01 Early 2022"]
[White "Chernov, Mikhail"]
[Black "Blokhin, Sofia"]
[WhiteFideId "24143170"]
[BlackFideId "4508190"]
[WhiteElo "2113"]
[BlackElo "2005"]
[Result "1-0"]
[Round "09"]
[TimeControl "180+1"]
[Date "2022.11.02"]
[WhiteClock "0:00:53"]
[BlackClock "0:00:06"]

1. e4 {[%clk 0:03:00]}  c5 {[%clk 0:02:59]} 2. Nf3 {[%clk 0:03:01]}  e6 {[%clk 0:02:58]} 3. d4 {[%clk 0:03:01]}  cxd4 {[%clk 0:02:58]} 4. Nxd4 {[%clk 0:03:02]}  a6 {[%clk 0:02:58]} 5. Be2 {[%clk 0:03:02]}  Nf6 {[%clk 0:02:57]} 6. Nc3 {[%clk 0:03:02]}  Bb4 {[%clk 0:02:53]} 7. O-O {[%clk 0:03:03]}  Bxc3 {[%clk 0:02:52]} 8. bxc3 {[%clk 0:03:04]}  Nxe4 {[%clk 0:02:51]} 9. Bd3 {[%clk 0:03:04]}  Nf6 {[%clk 0:02:45]} 10. Re1 {[%clk 0:02:59]}  O-O {[%clk 0:02:44]} 11. Bg5 {[%clk 0:02:58]}  Nc6 {[%clk 0:02:38]} 12. Qf3 {[%clk 0:02:52]}  d5 {[%clk 0:02:18]} 13. Qh3 {[%clk 0:02:43]}  h6 {[%clk 0:02:08]} 14. Bxh6 {[%clk 0:02:32]}  gxh6 {[%clk 0:01:45]} 15. Qxh6 {[%clk 0:02:32]}  e5 {[%clk 0:01:08]} 16. Re3 {[%clk 0:02:24]}  e4 {[%clk 0:00:53]} 17. Rg3+ {[%clk 0:01:55]}  Ng4 {[%clk 0:00:52]} 18. Be2 {[%clk 0:01:50]}  Ne5 {[%clk 0:00:45]} 19. h3 {[%clk 0:01:21]}  f5 {[%clk 0:00:40]} 20. hxg4 {[%clk 0:01:17]}  fxg4 {[%clk 0:00:24]} 21. Ne6 {[%clk 0:01:06]}  Bxe6 {[%clk 0:00:14]} 22. Qxe6+ {[%clk 0:01:07]}  Nf7 {[%clk 0:00:07]} 23. Rxg4+ {[%clk 0:01:07]}  Kh8 {[%clk 0:00:07]} 24. Qg6 {[%clk 0:00:54]}  Rg8 {[%clk 0:00:06]} 25. Qh5+ {[%clk 0:00:53]} 1-0


[Site "https://www.chess.com"]

[Event "Titled Tuesday Blitz November 01 Early 2022"]
[White "Chigaev, Maksim"]
[Black "Krysa, Leandro"]
[WhiteFideId "4108116"]
[BlackFideId "116807"]
[WhiteElo "2537"]
[BlackElo "2486"]
[Result "1-0"]
[Round "09"]
[TimeControl "180+1"]
[Date "2022.11.01"]
[WhiteClock "0:00:04"]
[BlackClock "0:00:04"]

1. Nf3 {[%clk 0:03:00]}  g6 {[%clk 0:03:00]} 2. e4 {[%clk 0:02:59]}  Bg7 {[%clk 0:02:59]} 3. d4 {[%clk 0:02:59]}  d6 {[%clk 0:03:00]} 4. Be2 {[%clk 0:02:53]}  Nf6 {[%clk 0:02:54]} 5. Nc3 {[%clk 0:02:53]}  a6 {[%clk 0:02:55]} 6. a4 {[%clk 0:02:52]}  O-O {[%clk 0:02:54]} 7. O-O {[%clk 0:02:52]}  e6 {[%clk 0:02:52]} 8. h3 {[%clk 0:02:50]}  b6 {[%clk 0:02:52]} 9. e5 {[%clk 0:02:33]}  dxe5 {[%clk 0:02:44]} 10. Nxe5 {[%clk 0:02:29]}  Bb7 {[%clk 0:02:44]} 11. Bf3 {[%clk 0:02:25]}  Qc8 {[%clk 0:02:44]} 12. Qe2 {[%clk 0:02:22]}  Nfd7 {[%clk 0:02:23]} 13. Bxb7 {[%clk 0:02:09]}  Qxb7 {[%clk 0:02:23]} 14. Bf4 {[%clk 0:02:09]}  c5 {[%clk 0:02:13]} 15. dxc5 {[%clk 0:01:50]}  Nxe5 {[%clk 0:01:49]} 16. Bxe5 {[%clk 0:01:47]}  Bxe5 {[%clk 0:01:49]} 17. Qxe5 {[%clk 0:01:47]}  Nd7 {[%clk 0:01:50]} 18. Qg5 {[%clk 0:01:41]}  Nxc5 {[%clk 0:01:44]} 19. a5 {[%clk 0:01:39]}  Rac8 {[%clk 0:01:36]} 20. axb6 {[%clk 0:01:38]}  Qxb6 {[%clk 0:01:34]} 21. b3 {[%clk 0:01:38]}  Nd7 {[%clk 0:00:59]} 22. Na4 {[%clk 0:01:29]}  Qb5 {[%clk 0:00:55]} 23. Qd2 {[%clk 0:01:20]}  Nc5 {[%clk 0:00:49]} 24. Rfd1 {[%clk 0:00:53]}  h5 {[%clk 0:00:40]} 25. Nc3 {[%clk 0:00:47]}  Qb4 {[%clk 0:00:38]} 26. Qe3 {[%clk 0:00:44]}  Nxb3 {[%clk 0:00:32]} 27. Na2 {[%clk 0:00:44]}  Nxa1 {[%clk 0:00:23]} 28. Nxb4 {[%clk 0:00:44]}  Nxc2 {[%clk 0:00:24]} 29. Nxc2 {[%clk 0:00:44]}  Rxc2 {[%clk 0:00:25]} 30. Ra1 {[%clk 0:00:45]}  Rc6 {[%clk 0:00:23]} 31. g3 {[%clk 0:00:36]}  Rd8 {[%clk 0:00:22]} 32. Kg2 {[%clk 0:00:37]}  Rd5 {[%clk 0:00:22]} 33. Ra2 {[%clk 0:00:36]}  a5 {[%clk 0:00:21]} 34. Qb3 {[%clk 0:00:27]}  Rc8 {[%clk 0:00:20]} 35. Qb6 {[%clk 0:00:22]}  Rcd8 {[%clk 0:00:20]} 36. Rxa5 {[%clk 0:00:21]}  Kg7 {[%clk 0:00:20]} 37. Qb2+ {[%clk 0:00:19]}  Kg8 {[%clk 0:00:19]} 38. Rxd5 {[%clk 0:00:17]}  Rxd5 {[%clk 0:00:19]} 39. g4 {[%clk 0:00:18]}  hxg4 {[%clk 0:00:19]} 40. hxg4 {[%clk 0:00:19]}  Kf8 {[%clk 0:00:17]} 41. Qf6 {[%clk 0:00:19]}  Kg8 {[%clk 0:00:17]} 42. Kf3 {[%clk 0:00:19]}  Rb5 {[%clk 0:00:17]} 43. Kg3 {[%clk 0:00:16]}  Rd5 {[%clk 0:00:18]} 44. f4 {[%clk 0:00:10]}  Rb5 {[%clk 0:00:18]} 45. Kf2 {[%clk 0:00:10]}  Rd5 {[%clk 0:00:18]} 46. Ke3 {[%clk 0:00:11]}  Rb5 {[%clk 0:00:18]} 47. Ke4 {[%clk 0:00:11]}  Rd5 {[%clk 0:00:19]} 48. Qe7 {[%clk 0:00:09]}  Kg7 {[%clk 0:00:17]} 49. Qb7 {[%clk 0:00:07]}  Kg8 {[%clk 0:00:17]} 50. Qxd5 {[%clk 0:00:04]}  exd5+ {[%clk 0:00:16]} 51. Kxd5 {[%clk 0:00:05]}  Kf8 {[%clk 0:00:13]} 52. Kd6 {[%clk 0:00:06]}  Ke8 {[%clk 0:00:14]} 53. f5 {[%clk 0:00:05]}  f6 {[%clk 0:00:04]} 54. Ke6 {[%clk 0:00:04]}  gxf5 {[%clk 0:00:04]} 55. gxf5 {[%clk 0:00:04]} 1-0


[Site "https://www.chess.com"]

[Event "Titled Tuesday Blitz November 01 Early 2022"]
[White "Cramling Bellon, Anna"]
[Black "Smietanska, Wiktoria"]
[WhiteFideId "32009232"]
[BlackFideId "21869359"]
[WhiteElo "1972"]
[BlackElo "1854"]
[Result "1-0"]
[Round "09"]
[TimeControl "180+1"]
[Date "2022.11.02"]
[WhiteClock "0:00:21"]
[BlackClock "0:00:26"]

1. d4 {[%clk 0:02:53]}  Nf6 {[%clk 0:02:59]} 2. c4 {[%clk 0:02:50]}  g6 {[%clk 0:02:59]} 3. Nc3 {[%clk 0:02:48]}  Bg7 {[%clk 0:02:59]} 4. e4 {[%clk 0:02:48]}  d6 {[%clk 0:03:00]} 5. h3 {[%clk 0:02:48]}  O-O {[%clk 0:03:00]} 6. Bg5 {[%clk 0:02:46]}  h6 {[%clk 0:03:00]} 7. Be3 {[%clk 0:02:43]}  e5 {[%clk 0:02:50]} 8. d5 {[%clk 0:02:40]}  Nh5 {[%clk 0:02:47]} 9. g3 {[%clk 0:02:37]}  Qe8 {[%clk 0:02:46]} 10. Be2 {[%clk 0:02:36]}  f6 {[%clk 0:02:38]} 11. Bxh5 {[%clk 0:02:33]}  gxh5 {[%clk 0:02:37]} 12. g4 {[%clk 0:02:25]}  hxg4 {[%clk 0:02:34]} 13. hxg4 {[%clk 0:02:26]}  Qg6 {[%clk 0:02:34]} 14. f3 {[%clk 0:02:25]}  Kf7 {[%clk 0:02:31]} 15. Nge2 {[%clk 0:02:10]}  Rh8 {[%clk 0:02:14]} 16. Qd2 {[%clk 0:02:02]}  Nd7 {[%clk 0:02:03]} 17. Nb5 {[%clk 0:01:59]}  b6 {[%clk 0:01:33]} 18. Nxc7 {[%clk 0:01:56]}  Rb8 {[%clk 0:01:33]} 19. Ng3 {[%clk 0:01:49]}  Nc5 {[%clk 0:01:23]} 20. Nb5 {[%clk 0:01:39]}  Ke7 {[%clk 0:01:09]} 21. Nxa7 {[%clk 0:01:34]}  Bd7 {[%clk 0:01:08]} 22. Nf5+ {[%clk 0:01:22]}  Kd8 {[%clk 0:00:58]} 23. Nxd6 {[%clk 0:01:14]}  Bf8 {[%clk 0:00:54]} 24. Nf5 {[%clk 0:01:05]}  Ra8 {[%clk 0:00:52]} 25. Nc6+ {[%clk 0:01:02]}  Kc7 {[%clk 0:00:47]} 26. Nce7 {[%clk 0:00:54]}  Qf7 {[%clk 0:00:34]} 27. d6+ {[%clk 0:00:38]}  Kd8 {[%clk 0:00:31]} 28. Bxc5 {[%clk 0:00:30]}  bxc5 {[%clk 0:00:30]} 29. Qd5 {[%clk 0:00:30]}  Qxd5 {[%clk 0:00:26]} 30. cxd5 {[%clk 0:00:21]} 1-0


[Site "https://www.chess.com"]

[Event "Titled Tuesday Blitz November 01 Early 2022"]
[White "Deac, Bogdan-Daniel"]
[Black "Ohanyan, Emin"]
[WhiteFideId "1226380"]
[BlackFideId "13312022"]
[WhiteElo "2648"]
[BlackElo "2302"]
[Result "1-0"]
[Round "09"]
[TimeControl "180+1"]
[Date "2022.11.01"]
[WhiteClock "0:00:02"]
[BlackClock "0:00:01"]

1. d4 {[%clk 0:03:00]}  d5 {[%clk 0:02:52]} 2. Nf3 {[%clk 0:03:00]}  Nf6 {[%clk 0:02:51]} 3. e3 {[%clk 0:03:01]}  e6 {[%clk 0:02:39]} 4. c4 {[%clk 0:03:00]}  c5 {[%clk 0:02:36]} 5. cxd5 {[%clk 0:02:59]}  exd5 {[%clk 0:02:35]} 6. Be2 {[%clk 0:02:54]}  Nc6 {[%clk 0:02:35]} 7. O-O {[%clk 0:02:54]}  Be7 {[%clk 0:02:29]} 8. b3 {[%clk 0:02:47]}  Ne4 {[%clk 0:02:19]} 9. Bb2 {[%clk 0:02:43]}  Bf6 {[%clk 0:02:19]} 10. Na3 {[%clk 0:02:35]}  O-O {[%clk 0:02:11]} 11. Nc2 {[%clk 0:02:25]}  Bf5 {[%clk 0:02:07]} 12. Ne5 {[%clk 0:02:13]}  Rc8 {[%clk 0:02:02]} 13. Bd3 {[%clk 0:01:56]}  Re8 {[%clk 0:01:48]} 14. Nxc6 {[%clk 0:01:43]}  Rxc6 {[%clk 0:01:49]} 15. Bb5 {[%clk 0:01:40]}  Qa5 {[%clk 0:01:23]} 16. Bxc6 {[%clk 0:00:53]}  bxc6 {[%clk 0:01:22]} 17. Qc1 {[%clk 0:00:17]}  c4 {[%clk 0:00:46]} 18. Ba3 {[%clk 0:00:17]}  Qc3 {[%clk 0:00:29]} 19. Nb4 {[%clk 0:00:13]}  Be7 {[%clk 0:00:14]} 20. Nxc6 {[%clk 0:00:10]}  Bxa3 {[%clk 0:00:10]} 21. Qxa3 {[%clk 0:00:10]}  cxb3 {[%clk 0:00:11]} 22. Ne7+ {[%clk 0:00:10]}  Kh8 {[%clk 0:00:04]} 23. axb3 {[%clk 0:00:05]}  Be6 {[%clk 0:00:03]} 24. Rac1 {[%clk 0:00:05]}  Qd3 {[%clk 0:00:03]} 25. Nc6 {[%clk 0:00:05]}  Qe2 {[%clk 0:00:02]} 26. Ne5 {[%clk 0:00:05]}  Qh5 {[%clk 0:00:02]} 27. Qxa7 {[%clk 0:00:04]}  Ng5 {[%clk 0:00:02]} 28. f4 {[%clk 0:00:04]}  Ne4 {[%clk 0:00:01]} 29. f5 {[%clk 0:00:04]}  Qg5 {[%clk 0:00:01]} 30. Rce1 {[%clk 0:00:02]} 1-0


[Site "https://www.chess.com"]

[Event "Titled Tuesday Blitz November 01 Early 2022"]
[White "Dehtiarov, Roman"]
[Black "Brown, Andrew"]
[WhiteFideId "14186640"]
[BlackFideId "3206513"]
[WhiteElo "2200"]
[BlackElo "2245"]
[Result "1-0"]
[Round "09"]
[TimeControl "180+1"]
[Date "2022.11.02"]
[WhiteClock "0:00:07"]
[BlackClock "0:00:01"]

1. e4 {[%clk 0:03:00]}  g6 {[%clk 0:03:00]} 2. d4 {[%clk 0:02:59]}  Bg7 {[%clk 0:03:01]} 3. Nc3 {[%clk 0:03:00]}  c6 {[%clk 0:03:01]} 4. f4 {[%clk 0:02:59]}  d5 {[%clk 0:03:01]} 5. e5 {[%clk 0:03:00]}  h5 {[%clk 0:03:01]} 6. Nf3 {[%clk 0:03:00]}  Nh6 {[%clk 0:03:01]} 7. Be3 {[%clk 0:02:59]}  Bg4 {[%clk 0:02:54]} 8. Be2 {[%clk 0:02:59]}  Nf5 {[%clk 0:02:46]} 9. Bf2 {[%clk 0:02:57]}  Nd7 {[%clk 0:02:45]} 10. Qd2 {[%clk 0:02:56]}  Nf8 {[%clk 0:02:44]} 11. h3 {[%clk 0:02:56]}  Bxf3 {[%clk 0:02:43]} 12. Bxf3 {[%clk 0:02:57]}  h4 {[%clk 0:02:33]} 13. O-O-O {[%clk 0:02:55]}  Ne6 {[%clk 0:02:26]} 14. Kb1 {[%clk 0:02:54]}  Qa5 {[%clk 0:02:09]} 15. a3 {[%clk 0:02:27]}  Bh6 {[%clk 0:02:01]} 16. Be3 {[%clk 0:02:23]}  Nxe3 {[%clk 0:01:58]} 17. Qxe3 {[%clk 0:02:24]}  Bxf4 {[%clk 0:01:55]} 18. Qe2 {[%clk 0:02:21]}  Qb6 {[%clk 0:01:23]} 19. Na4 {[%clk 0:02:08]}  Qc7 {[%clk 0:01:20]} 20. c4 {[%clk 0:02:08]}  dxc4 {[%clk 0:01:13]} 21. Qxc4 {[%clk 0:02:09]}  O-O {[%clk 0:01:10]} 22. Nc3 {[%clk 0:02:06]}  Rad8 {[%clk 0:01:06]} 23. Bg4 {[%clk 0:02:04]}  Nxd4 {[%clk 0:00:52]} 24. Rxd4 {[%clk 0:01:58]}  Bxe5 {[%clk 0:00:40]} 25. Rxd8 {[%clk 0:01:52]}  Rxd8 {[%clk 0:00:41]} 26. Rf1 {[%clk 0:01:51]}  Bf6 {[%clk 0:00:22]} 27. Ne4 {[%clk 0:01:45]}  Qe5 {[%clk 0:00:22]} 28. Nxf6+ {[%clk 0:01:33]}  exf6 {[%clk 0:00:23]} 29. Qc2 {[%clk 0:01:14]}  f5 {[%clk 0:00:21]} 30. Bf3 {[%clk 0:01:14]}  Kg7 {[%clk 0:00:21]} 31. Rd1 {[%clk 0:01:13]}  Rxd1+ {[%clk 0:00:20]} 32. Qxd1 {[%clk 0:01:14]}  g5 {[%clk 0:00:19]} 33. Qd2 {[%clk 0:01:12]}  Qe7 {[%clk 0:00:14]} 34. Ka1 {[%clk 0:01:04]}  Kg6 {[%clk 0:00:13]} 35. Qd3 {[%clk 0:00:58]}  a5 {[%clk 0:00:11]} 36. Kb1 {[%clk 0:00:56]}  Qe1+ {[%clk 0:00:08]} 37. Kc2 {[%clk 0:00:55]}  Qe6 {[%clk 0:00:08]} 38. Qe2 {[%clk 0:00:43]}  Kf6 {[%clk 0:00:06]} 39. Qd2 {[%clk 0:00:39]}  Qe5 {[%clk 0:00:03]} 40. Qd8+ {[%clk 0:00:38]}  Kg6 {[%clk 0:00:03]} 41. Qg8+ {[%clk 0:00:37]}  Kf6 {[%clk 0:00:04]} 42. Qh8+ {[%clk 0:00:36]}  Ke6 {[%clk 0:00:04]} 43. Qxe5+ {[%clk 0:00:19]}  Kxe5 {[%clk 0:00:05]} 44. Kd3 {[%clk 0:00:20]}  Kf4 {[%clk 0:00:01]} 45. Bh5 {[%clk 0:00:07]} 1-0


[Site "https://www.chess.com"]

[Event "Titled Tuesday Blitz November 01 Early 2022"]
[White "Devaev, Alexander"]
[Black "Barria Zuniga, Daniel"]
[WhiteFideId "4169395"]
[BlackFideId "3400816"]
[WhiteElo "2225"]
[BlackElo "2414"]
[Result "0-1"]
[Round "09"]
[TimeControl "180+1"]
[Date "2022.11.02"]
[WhiteClock "0:00:01"]
[BlackClock "0:00:36"]

1. d4 {[%clk 0:02:54]}  d5 {[%clk 0:02:57]} 2. Nf3 {[%clk 0:02:54]}  e6 {[%clk 0:02:57]} 3. c4 {[%clk 0:02:55]}  Nf6 {[%clk 0:02:57]} 4. Nc3 {[%clk 0:02:56]}  dxc4 {[%clk 0:02:57]} 5. e3 {[%clk 0:02:54]}  a6 {[%clk 0:02:56]} 6. Bxc4 {[%clk 0:02:54]}  b5 {[%clk 0:02:56]} 7. Bd3 {[%clk 0:02:52]}  Bb7 {[%clk 0:02:54]} 8. O-O {[%clk 0:02:53]}  Nbd7 {[%clk 0:02:53]} 9. e4 {[%clk 0:01:57]}  c5 {[%clk 0:02:53]} 10. d5 {[%clk 0:01:57]}  c4 {[%clk 0:02:50]} 11. Bc2 {[%clk 0:01:57]}  Qc7 {[%clk 0:02:43]} 12. dxe6 {[%clk 0:01:42]}  fxe6 {[%clk 0:02:44]} 13. e5 {[%clk 0:01:38]}  Nxe5 {[%clk 0:02:26]} 14. Nxe5 {[%clk 0:01:35]}  Qxe5 {[%clk 0:02:25]} 15. Re1 {[%clk 0:01:36]}  Qd6 {[%clk 0:02:13]} 16. Qxd6 {[%clk 0:01:26]}  Bxd6 {[%clk 0:02:14]} 17. Rxe6+ {[%clk 0:01:26]}  Kd7 {[%clk 0:02:14]} 18. Bf5 {[%clk 0:00:58]}  Kc7 {[%clk 0:02:15]} 19. Bg5 {[%clk 0:00:58]}  Rad8 {[%clk 0:02:13]} 20. Rd1 {[%clk 0:00:50]}  b4 {[%clk 0:01:59]} 21. Rexd6 {[%clk 0:00:39]}  Rxd6 {[%clk 0:01:55]} 22. Bf4 {[%clk 0:00:40]}  Rd8 {[%clk 0:01:46]} 23. Ne2 {[%clk 0:00:26]}  Be4 {[%clk 0:01:21]} 24. Bxe4 {[%clk 0:00:20]}  Nxe4 {[%clk 0:01:20]} 25. Rc1 {[%clk 0:00:19]}  Kb6 {[%clk 0:01:09]} 26. Bxd6 {[%clk 0:00:19]}  Rxd6 {[%clk 0:01:05]} 27. f3 {[%clk 0:00:19]}  Nd2 {[%clk 0:00:52]} 28. Kf2 {[%clk 0:00:17]}  Kc5 {[%clk 0:00:48]} 29. g4 {[%clk 0:00:13]}  a5 {[%clk 0:00:46]} 30. Ke3 {[%clk 0:00:08]}  Rd3+ {[%clk 0:00:45]} 31. Kf2 {[%clk 0:00:06]}  Rxf3+ {[%clk 0:00:41]} 32. Kg2 {[%clk 0:00:07]}  Rd3 {[%clk 0:00:41]} 33. Nf4 {[%clk 0:00:05]}  Rd6 {[%clk 0:00:40]} 34. Kf2 {[%clk 0:00:01]}  a4 {[%clk 0:00:38]} 35. Ke3 {[%clk 0:00:01]}  c3 {[%clk 0:00:36]} 36. bxc3 {[%clk 0:00:01]}  b3 {[%clk 0:00:36]} 0-1


[Site "https://www.chess.com"]

[Event "Titled Tuesday Blitz November 01 Early 2022"]
[White "Dubov, Daniil"]
[Black "Xiong, Jeffery"]
[WhiteFideId "24126055"]
[BlackFideId "2047640"]
[WhiteElo "2791"]
[BlackElo "2725"]
[Result "1-0"]
[Round "09"]
[TimeControl "180+1"]
[Date "2022.11.01"]
[WhiteClock "0:00:16"]
[BlackClock "0:00:24"]

1. e4 {[%clk 0:03:00]}  c5 {[%clk 0:02:58]} 2. Nf3 {[%clk 0:03:00]}  d6 {[%clk 0:02:59]} 3. c3 {[%clk 0:02:58]}  Nf6 {[%clk 0:02:59]} 4. g3 {[%clk 0:02:58]}  Nbd7 {[%clk 0:02:57]} 5. Qe2 {[%clk 0:02:56]}  Qc7 {[%clk 0:02:50]} 6. Bg2 {[%clk 0:02:55]}  b6 {[%clk 0:02:43]} 7. O-O {[%clk 0:02:51]}  Bb7 {[%clk 0:02:44]} 8. d3 {[%clk 0:02:50]}  g6 {[%clk 0:02:43]} 9. Ng5 {[%clk 0:02:39]}  Bg7 {[%clk 0:02:36]} 10. f4 {[%clk 0:02:39]}  O-O {[%clk 0:02:37]} 11. Be3 {[%clk 0:02:31]}  e6 {[%clk 0:02:35]} 12. Nd2 {[%clk 0:02:30]}  b5 {[%clk 0:02:35]} 13. g4 {[%clk 0:02:17]}  Rfe8 {[%clk 0:02:30]} 14. Rae1 {[%clk 0:02:12]}  a5 {[%clk 0:02:30]} 15. f5 {[%clk 0:01:54]}  exf5 {[%clk 0:02:31]} 16. gxf5 {[%clk 0:01:54]}  d5 {[%clk 0:02:24]} 17. Bf4 {[%clk 0:01:50]}  Qb6 {[%clk 0:02:24]} 18. e5 {[%clk 0:01:43]}  Nh5 {[%clk 0:02:24]} 19. e6 {[%clk 0:01:37]}  fxe6 {[%clk 0:02:24]} 20. fxe6 {[%clk 0:01:29]}  Nxf4 {[%clk 0:02:23]} 21. Rxf4 {[%clk 0:01:28]}  Nf6 {[%clk 0:02:18]} 22. Ref1 {[%clk 0:01:24]}  Qd8 {[%clk 0:02:17]} 23. Nb3 {[%clk 0:00:56]}  Nh5 {[%clk 0:02:12]} 24. Rg4 {[%clk 0:00:41]}  Rc8 {[%clk 0:02:06]} 25. Rf7 {[%clk 0:00:38]}  Ba8 {[%clk 0:01:52]} 26. Qf2 {[%clk 0:00:34]}  Nf6 {[%clk 0:01:38]} 27. Rf4 {[%clk 0:00:32]}  Nh5 {[%clk 0:01:37]} 28. Rg4 {[%clk 0:00:28]}  Nf6 {[%clk 0:01:38]} 29. Qh4 {[%clk 0:00:23]}  h5 {[%clk 0:01:19]} 30. Rf4 {[%clk 0:00:23]}  a4 {[%clk 0:01:15]} 31. Nd2 {[%clk 0:00:22]}  a3 {[%clk 0:01:15]} 32. bxa3 {[%clk 0:00:22]}  Rc6 {[%clk 0:01:13]} 33. Bh3 {[%clk 0:00:20]}  Ra6 {[%clk 0:01:00]} 34. Qf2 {[%clk 0:00:18]}  d4 {[%clk 0:00:24]} 35. R4xf6 {[%clk 0:00:16]} 1-0


[Site "https://www.chess.com"]

[Event "Titled Tuesday Blitz November 01 Early 2022"]
[White "Fathy, Elameir"]
[Black "Brueckner, Thomas"]
[WhiteFideId "10600396"]
[BlackFideId "4600452"]
[WhiteElo "2311"]
[BlackElo "2332"]
[Result "1-0"]
[Round "09"]
[TimeControl "180+1"]
[Date "2022.11.02"]
[WhiteClock "0:01:29"]
[BlackClock "0:01:15"]

1. d4 {[%clk 0:02:47]}  Nf6 {[%clk 0:02:59]} 2. c4 {[%clk 0:02:47]}  g6 {[%clk 0:02:59]} 3. Nc3 {[%clk 0:02:47]}  Bg7 {[%clk 0:02:59]} 4. e4 {[%clk 0:02:46]}  d6 {[%clk 0:03:00]} 5. Nf3 {[%clk 0:02:47]}  O-O {[%clk 0:03:00]} 6. Be2 {[%clk 0:02:47]}  Nbd7 {[%clk 0:03:00]} 7. Be3 {[%clk 0:02:47]}  e5 {[%clk 0:02:59]} 8. d5 {[%clk 0:02:47]}  Ng4 {[%clk 0:02:59]} 9. Bg5 {[%clk 0:02:40]}  f6 {[%clk 0:02:59]} 10. Bh4 {[%clk 0:02:40]}  Nh6 {[%clk 0:02:59]} 11. Nd2 {[%clk 0:02:38]}  g5 {[%clk 0:02:56]} 12. Bg3 {[%clk 0:02:38]}  f5 {[%clk 0:02:57]} 13. f3 {[%clk 0:02:38]}  Nf6 {[%clk 0:02:52]} 14. Bf2 {[%clk 0:02:30]}  c5 {[%clk 0:02:29]} 15. Qc2 {[%clk 0:02:21]}  g4 {[%clk 0:02:16]} 16. O-O-O {[%clk 0:02:12]}  a6 {[%clk 0:02:14]} 17. h3 {[%clk 0:02:00]}  g3 {[%clk 0:02:01]} 18. Bxg3 {[%clk 0:01:55]}  b5 {[%clk 0:02:02]} 19. Bh4 {[%clk 0:01:42]}  b4 {[%clk 0:01:21]} 20. Ncb1 {[%clk 0:01:32]}  f4 {[%clk 0:01:18]} 21. g4 {[%clk 0:01:29]}  fxg3 {[%clk 0:01:18]} 22. Rdg1 {[%clk 0:01:30]}  Nh5 {[%clk 0:01:15]} 23. Bxd8 {[%clk 0:01:29]} 1-0


[Site "https://www.chess.com"]